[Event "Titled Tuesday Blitz June 6 Early 2023"]
[White "demon64fields"]
[Black "benny_aizenberg"]
[WhiteElo "2836"]
[BlackElo "2721"]
[Result "1-0"]
[Round "10"]
[TimeControl "180+2"]
[Date "2023.06.06"]
[WhiteClock "0:01:26"]
[BlackClock "0:00:01"]
[Board "23"]

1. Nf3 {[%clk 0:03:00]}  d5 {[%clk 0:02:57]} 2. g3 {[%clk 0:03:01]}  c5 {[%clk 0:02:55]} 3. Bg2 {[%clk 0:03:01]}  Nc6 {[%clk 0:02:52]} 4. d4 {[%clk 0:03:02]}  cxd4 {[%clk 0:02:50]} 5. Nxd4 {[%clk 0:03:03]}  e5 {[%clk 0:02:48]} 6. Nxc6 {[%clk 0:03:03]}  bxc6 {[%clk 0:02:47]} 7. c4 {[%clk 0:03:04]}  Nf6 {[%clk 0:02:46]} 8. O-O {[%clk 0:03:04]}  Be7 {[%clk 0:02:42]} 9. Nc3 {[%clk 0:03:03]}  d4 {[%clk 0:02:33]} 10. Ne4 {[%clk 0:03:03]}  Nxe4 {[%clk 0:02:27]} 11. Bxe4 {[%clk 0:03:04]}  Bd7 {[%clk 0:02:23]} 12. Qc2 {[%clk 0:03:02]}  h5 {[%clk 0:02:03]} 13. c5 {[%clk 0:02:59]}  h4 {[%clk 0:01:59]} 14. e3 {[%clk 0:02:59]}  hxg3 {[%clk 0:01:53]} 15. hxg3 {[%clk 0:03:00]}  Qc8 {[%clk 0:01:46]} 16. exd4 {[%clk 0:02:58]}  exd4 {[%clk 0:01:44]} 17. Rd1 {[%clk 0:02:57]}  Bf6 {[%clk 0:01:42]} 18. Bf4 {[%clk 0:02:57]}  Kf8 {[%clk 0:01:32]} 19. Bd6+ {[%clk 0:02:57]}  Kg8 {[%clk 0:01:31]} 20. Qa4 {[%clk 0:02:53]}  Qe8 {[%clk 0:01:15]} 21. Rxd4 {[%clk 0:02:50]}  Bxd4 {[%clk 0:01:14]} 22. Qxd4 {[%clk 0:02:51]}  Qe6 {[%clk 0:01:12]} 23. Bf4 {[%clk 0:02:34]}  Re8 {[%clk 0:01:07]} 24. Bf3 {[%clk 0:02:10]}  Qh3 {[%clk 0:01:05]} 25. Be3 {[%clk 0:02:01]}  Bc8 {[%clk 0:00:45]} 26. Rd1 {[%clk 0:01:54]}  Ba6 {[%clk 0:00:38]} 27. Rd3 {[%clk 0:01:47]}  Qh2+ {[%clk 0:00:35]} 28. Kf1 {[%clk 0:01:45]}  Qh7 {[%clk 0:00:32]} 29. Ke2 {[%clk 0:01:44]}  Qxd3+ {[%clk 0:00:21]} 30. Qxd3 {[%clk 0:01:45]}  Bxd3+ {[%clk 0:00:21]} 31. Kxd3 {[%clk 0:01:46]}  Re6 {[%clk 0:00:20]} 32. b4 {[%clk 0:01:44]}  Rh2 {[%clk 0:00:19]} 33. a4 {[%clk 0:01:42]}  Rf6 {[%clk 0:00:19]} 34. Be4 {[%clk 0:01:42]}  Kf8 {[%clk 0:00:18]} 35. b5 {[%clk 0:01:42]}  cxb5 {[%clk 0:00:16]} 36. axb5 {[%clk 0:01:42]}  Ke7 {[%clk 0:00:12]} 37. c6 {[%clk 0:01:42]}  Rhxf2 {[%clk 0:00:10]} 38. Bxa7 {[%clk 0:01:38]}  Ra2 {[%clk 0:00:09]} 39. Bc5+ {[%clk 0:01:36]}  Kd8 {[%clk 0:00:09]} 40. b6 {[%clk 0:01:35]}  Rb2 {[%clk 0:00:09]} 41. Kc3 {[%clk 0:01:30]}  Rb5 {[%clk 0:00:08]} 42. Kc4 {[%clk 0:01:30]}  Rb2 {[%clk 0:00:08]} 43. Bd4 {[%clk 0:01:30]}  Ra2 {[%clk 0:00:04]} 44. c7+ {[%clk 0:01:30]}  Kc8 {[%clk 0:00:04]} 45. Bxf6 {[%clk 0:01:31]}  Ra4+ {[%clk 0:00:02]} 46. Kd3 {[%clk 0:01:28]}  Ra3+ {[%clk 0:00:02]} 47. Bc3 {[%clk 0:01:28]}  g6 {[%clk 0:00:01]} 48. Bd5 {[%clk 0:01:27]}  Ra6 {[%clk 0:00:01]} 49. Bd4 {[%clk 0:01:26]} 1-0


[Site "https://www.chess.com"]

[Event "Titled Tuesday Blitz June 6 Early 2023"]
[White "Veiga, Jose Francisco R P Neves"]
[Black "Bryakin, Mikhail"]
[WhiteFideId "1930087"]
[BlackFideId "4165314"]
[WhiteElo "2319"]
[BlackElo "2464"]
[Result "0-1"]
[Round "10"]
[TimeControl "180+2"]
[Date "2023.06.06"]
[WhiteClock "0:00:08"]
[BlackClock "0:00:54"]
[Board "25"]

1. c4 {[%clk 0:03:00]}  e5 {[%clk 0:02:57]} 2. Nc3 {[%clk 0:03:00]}  Nc6 {[%clk 0:02:58]} 3. Nf3 {[%clk 0:03:00]}  g6 {[%clk 0:02:58]} 4. d4 {[%clk 0:02:59]}  exd4 {[%clk 0:02:58]} 5. Nxd4 {[%clk 0:03:00]}  Bg7 {[%clk 0:02:59]} 6. e3 {[%clk 0:02:54]}  Nge7 {[%clk 0:02:58]} 7. Be2 {[%clk 0:02:54]}  Nxd4 {[%clk 0:02:58]} 8. exd4 {[%clk 0:02:54]}  d5 {[%clk 0:02:59]} 9. Bg5 {[%clk 0:02:42]}  f6 {[%clk 0:02:42]} 10. Bf4 {[%clk 0:02:40]}  c6 {[%clk 0:02:40]} 11. O-O {[%clk 0:02:40]}  Be6 {[%clk 0:02:39]} 12. c5 {[%clk 0:02:39]}  O-O {[%clk 0:02:38]} 13. Re1 {[%clk 0:02:39]}  Qd7 {[%clk 0:02:35]} 14. b4 {[%clk 0:02:33]}  a6 {[%clk 0:02:33]} 15. h3 {[%clk 0:02:30]}  Rfe8 {[%clk 0:02:34]} 16. Qd2 {[%clk 0:02:29]}  Nf5 {[%clk 0:02:33]} 17. a4 {[%clk 0:02:16]}  Bf7 {[%clk 0:02:33]} 18. b5 {[%clk 0:02:11]}  h5 {[%clk 0:02:18]} 19. bxa6 {[%clk 0:01:54]}  bxa6 {[%clk 0:02:19]} 20. a5 {[%clk 0:01:52]}  g5 {[%clk 0:01:59]} 21. Bh2 {[%clk 0:01:51]}  Nh4 {[%clk 0:01:58]} 22. Bg3 {[%clk 0:01:34]}  Nf5 {[%clk 0:01:55]} 23. Bh2 {[%clk 0:01:34]}  Bh6 {[%clk 0:01:47]} 24. g4 {[%clk 0:00:52]}  Nh4 {[%clk 0:01:46]} 25. Qd3 {[%clk 0:00:46]}  hxg4 {[%clk 0:01:27]} 26. hxg4 {[%clk 0:00:45]}  Re7 {[%clk 0:01:00]} 27. Bg3 {[%clk 0:00:21]}  Qe8 {[%clk 0:00:54]} 28. Bxh4 {[%clk 0:00:08]}  gxh4 {[%clk 0:00:55]} 29. Bf1 {[%clk 0:00:08]}  Rxe1 {[%clk 0:00:54]} 0-1


[Site "https://www.chess.com"]

[Event "Titled Tuesday Blitz June 6 Early 2023"]
[White "Goltsev, Dmitry"]
[Black "Ilamparthi A R"]
[WhiteFideId "24176710"]
[BlackFideId "45015775"]
[WhiteElo "2356"]
[BlackElo "2348"]
[Result "0-1"]
[Round "10"]
[TimeControl "180+2"]
[Date "2023.06.06"]
[WhiteClock "0:00:19"]
[BlackClock "0:01:44"]
[Board "26"]

1. e4 {[%clk 0:03:00]}  c5 {[%clk 0:02:59]} 2. Nf3 {[%clk 0:03:00]}  d6 {[%clk 0:02:59]} 3. d4 {[%clk 0:03:00]}  cxd4 {[%clk 0:03:00]} 4. Nxd4 {[%clk 0:03:01]}  Nf6 {[%clk 0:03:01]} 5. Nc3 {[%clk 0:03:01]}  a6 {[%clk 0:03:01]} 6. Be2 {[%clk 0:03:01]}  e5 {[%clk 0:03:01]} 7. Nb3 {[%clk 0:02:59]}  Be7 {[%clk 0:03:00]} 8. Be3 {[%clk 0:02:59]}  Be6 {[%clk 0:02:59]} 9. Nd5 {[%clk 0:02:59]}  Nbd7 {[%clk 0:03:00]} 10. f3 {[%clk 0:02:54]}  O-O {[%clk 0:02:57]} 11. c4 {[%clk 0:02:53]}  Rc8 {[%clk 0:02:41]} 12. O-O {[%clk 0:02:52]}  Nc5 {[%clk 0:02:33]} 13. Nxc5 {[%clk 0:02:50]}  dxc5 {[%clk 0:02:33]} 14. Qd2 {[%clk 0:02:50]}  Bxd5 {[%clk 0:02:31]} 15. cxd5 {[%clk 0:02:47]}  b5 {[%clk 0:02:31]} 16. a4 {[%clk 0:02:45]}  c4 {[%clk 0:02:31]} 17. axb5 {[%clk 0:02:45]}  axb5 {[%clk 0:02:32]} 18. Ra6 {[%clk 0:02:45]}  Nd7 {[%clk 0:02:28]} 19. d6 {[%clk 0:02:43]}  Bf6 {[%clk 0:02:25]} 20. Ra7 {[%clk 0:02:38]}  Nc5 {[%clk 0:02:17]} 21. Qd5 {[%clk 0:02:29]}  Ne6 {[%clk 0:02:12]} 22. d7 {[%clk 0:02:24]}  Rb8 {[%clk 0:02:09]} 23. Rd1 {[%clk 0:02:21]}  Bg5 {[%clk 0:02:05]} 24. Qd2 {[%clk 0:01:57]}  Bxe3+ {[%clk 0:02:01]} 25. Qxe3 {[%clk 0:01:58]}  Nd4 {[%clk 0:01:58]} 26. Rxd4 {[%clk 0:01:14]}  Qb6 {[%clk 0:01:53]} 27. Rd3 {[%clk 0:00:59]}  cxd3 {[%clk 0:01:51]} 28. Qxb6 {[%clk 0:00:59]}  Rxb6 {[%clk 0:01:52]} 29. Bxd3 {[%clk 0:00:59]}  Rd8 {[%clk 0:01:52]} 30. Kf2 {[%clk 0:00:51]}  Kf8 {[%clk 0:01:51]} 31. Ra5 {[%clk 0:00:31]}  Rxd7 {[%clk 0:01:50]} 32. Bxb5 {[%clk 0:00:29]}  Rd2+ {[%clk 0:01:49]} 33. Kg3 {[%clk 0:00:26]}  Rg6+ {[%clk 0:01:48]} 34. Kh3 {[%clk 0:00:25]}  Rgxg2 {[%clk 0:01:44]} 35. b3 {[%clk 0:00:20]}  Rxh2+ {[%clk 0:01:42]} 36. Kg4 {[%clk 0:00:20]}  Rdg2+ {[%clk 0:01:43]} 37. Kf5 {[%clk 0:00:19]}  Rh5# {[%clk 0:01:44]} 0-1


[Site "https://www.chess.com"]

[Event "Titled Tuesday Blitz June 6 Early 2023"]
[White "Shuvalova, Polina"]
[Black "Fier, Alexandr"]
[WhiteFideId "24171760"]
[BlackFideId "2107139"]
[WhiteElo "2281"]
[BlackElo "2610"]
[Result "1-0"]
[Round "10"]
[TimeControl "180+2"]
[Date "2023.06.06"]
[WhiteClock "0:00:15"]
[BlackClock "0:01:01"]
[Board "27"]

1. e4 {[%clk 0:03:00]}  Nf6 {[%clk 0:02:59]} 2. e5 {[%clk 0:02:59]}  Nd5 {[%clk 0:03:00]} 3. d4 {[%clk 0:03:00]}  d6 {[%clk 0:03:01]} 4. Nf3 {[%clk 0:03:00]}  g6 {[%clk 0:03:00]} 5. exd6 {[%clk 0:03:00]}  cxd6 {[%clk 0:03:00]} 6. Be2 {[%clk 0:02:56]}  Bg7 {[%clk 0:03:00]} 7. c4 {[%clk 0:02:56]}  Nb6 {[%clk 0:03:00]} 8. h3 {[%clk 0:02:57]}  O-O {[%clk 0:03:00]} 9. Nc3 {[%clk 0:02:57]}  Nc6 {[%clk 0:03:00]} 10. Be3 {[%clk 0:02:56]}  Bf5 {[%clk 0:03:00]} 11. Rc1 {[%clk 0:02:54]}  d5 {[%clk 0:03:00]} 12. c5 {[%clk 0:02:50]}  Nc4 {[%clk 0:03:00]} 13. O-O {[%clk 0:02:28]}  Nxb2 {[%clk 0:02:57]} 14. Qb3 {[%clk 0:02:21]}  Nc4 {[%clk 0:02:45]} 15. Bxc4 {[%clk 0:02:20]}  dxc4 {[%clk 0:02:46]} 16. Qxc4 {[%clk 0:02:19]}  Rc8 {[%clk 0:02:40]} 17. Rfd1 {[%clk 0:02:17]}  Na5 {[%clk 0:02:39]} 18. Qe2 {[%clk 0:02:14]}  b6 {[%clk 0:02:39]} 19. Nb5 {[%clk 0:01:41]}  Qd7 {[%clk 0:02:34]} 20. a4 {[%clk 0:01:39]}  Be6 {[%clk 0:02:29]} 21. cxb6 {[%clk 0:01:21]}  axb6 {[%clk 0:02:27]} 22. d5 {[%clk 0:01:21]}  Bxd5 {[%clk 0:02:23]} 23. Bxb6 {[%clk 0:01:20]}  Rxc1 {[%clk 0:02:18]} 24. Rxc1 {[%clk 0:01:19]}  Nb3 {[%clk 0:02:16]} 25. Rd1 {[%clk 0:01:17]}  Qb7 {[%clk 0:02:15]} 26. Be3 {[%clk 0:01:13]}  Ra8 {[%clk 0:02:10]} 27. Rxd5 {[%clk 0:01:05]}  Qxd5 {[%clk 0:02:10]} 28. Nc7 {[%clk 0:01:05]}  Qe4 {[%clk 0:02:04]} 29. Nxa8 {[%clk 0:01:05]}  Qxa8 {[%clk 0:02:04]} 30. Qb5 {[%clk 0:01:05]}  Na5 {[%clk 0:02:02]} 31. Bb6 {[%clk 0:01:03]}  Nc6 {[%clk 0:02:02]} 32. a5 {[%clk 0:01:02]}  e5 {[%clk 0:01:51]} 33. Qd5 {[%clk 0:00:58]}  Qc8 {[%clk 0:01:46]} 34. Ng5 {[%clk 0:00:55]}  Nd4 {[%clk 0:01:27]} 35. Qxf7+ {[%clk 0:00:53]}  Kh8 {[%clk 0:01:26]} 36. Qc7 {[%clk 0:00:37]}  Qa8 {[%clk 0:01:04]} 37. Nf7+ {[%clk 0:00:27]}  Kg8 {[%clk 0:01:04]} 38. Qd8+ {[%clk 0:00:28]}  Qxd8 {[%clk 0:01:04]} 39. Nxd8 {[%clk 0:00:29]}  Bf6 {[%clk 0:01:02]} 40. a6 {[%clk 0:00:21]}  Nb5 {[%clk 0:01:01]} 41. Nc6 {[%clk 0:00:22]}  Kf7 {[%clk 0:00:59]} 42. a7 {[%clk 0:00:22]}  Nxa7 {[%clk 0:01:00]} 43. Bxa7 {[%clk 0:00:23]}  Ke6 {[%clk 0:01:00]} 44. Be3 {[%clk 0:00:21]}  Kd5 {[%clk 0:01:01]} 45. Nb4+ {[%clk 0:00:20]}  Ke4 {[%clk 0:01:02]} 46. Kf1 {[%clk 0:00:19]}  h5 {[%clk 0:01:00]} 47. Ke2 {[%clk 0:00:19]}  Be7 {[%clk 0:01:00]} 48. Nc6 {[%clk 0:00:19]}  Bf6 {[%clk 0:01:00]} 49. f3+ {[%clk 0:00:18]}  Kf5 {[%clk 0:01:00]} 50. g4+ {[%clk 0:00:17]}  Ke6 {[%clk 0:01:00]} 51. Kd3 {[%clk 0:00:16]}  Kd5 {[%clk 0:01:01]} 52. Nb4+ {[%clk 0:00:16]}  Ke6 {[%clk 0:01:01]} 53. Ke4 {[%clk 0:00:15]}  hxg4 {[%clk 0:01:01]} 54. hxg4 {[%clk 0:00:14]}  Be7 {[%clk 0:01:01]} 55. Nd3 {[%clk 0:00:14]}  Bd6 {[%clk 0:01:01]} 56. Bf2 {[%clk 0:00:15]}  Be7 {[%clk 0:01:02]} 57. Bg3 {[%clk 0:00:14]}  Kf7 {[%clk 0:01:01]} 58. Bxe5 {[%clk 0:00:15]}  Ke6 {[%clk 0:01:00]} 59. Nf4+ {[%clk 0:00:15]}  Kf7 {[%clk 0:01:00]} 60. Nd5 {[%clk 0:00:15]}  Bg5 {[%clk 0:01:01]} 61. Bd4 {[%clk 0:00:15]}  Bd8 {[%clk 0:01:01]} 62. f4 {[%clk 0:00:15]}  Ba5 {[%clk 0:01:01]} 63. Ne3 {[%clk 0:00:16]}  Bc7 {[%clk 0:01:01]} 64. Nc4 {[%clk 0:00:17]}  Bb8 {[%clk 0:01:01]} 65. Ne5+ {[%clk 0:00:15]} 1-0


[Site "https://www.chess.com"]

[Event "Titled Tuesday Blitz June 6 Early 2023"]
[White "Djordjevic, Vuk"]
[Black "Manukyan, Sargis V."]
[WhiteFideId "902098"]
[BlackFideId "13303465"]
[WhiteElo "2463"]
[BlackElo "2236"]
[Result "1/2-1/2"]
[Round "10"]
[TimeControl "180+2"]
[Date "2023.06.06"]
[WhiteClock "0:00:06"]
[BlackClock "0:00:17"]
[Board "28"]

1. d4 {[%clk 0:03:00]}  c5 {[%clk 0:02:59]} 2. d5 {[%clk 0:03:00]}  e6 {[%clk 0:03:00]} 3. e4 {[%clk 0:03:00]}  exd5 {[%clk 0:03:01]} 4. exd5 {[%clk 0:03:01]}  d6 {[%clk 0:02:59]} 5. c4 {[%clk 0:03:01]}  Ne7 {[%clk 0:02:59]} 6. Nc3 {[%clk 0:02:58]}  Ng6 {[%clk 0:03:00]} 7. g3 {[%clk 0:02:50]}  Be7 {[%clk 0:03:00]} 8. h4 {[%clk 0:02:50]}  O-O {[%clk 0:03:01]} 9. Be3 {[%clk 0:02:50]}  h6 {[%clk 0:02:58]} 10. h5 {[%clk 0:02:46]}  Ne5 {[%clk 0:02:58]} 11. Be2 {[%clk 0:02:47]}  Re8 {[%clk 0:02:50]} 12. Nh3 {[%clk 0:02:45]}  Bxh3 {[%clk 0:02:47]} 13. Rxh3 {[%clk 0:02:45]}  Na6 {[%clk 0:02:42]} 14. Kf1 {[%clk 0:02:37]}  Qd7 {[%clk 0:02:38]} 15. Kg2 {[%clk 0:02:36]}  f5 {[%clk 0:02:31]} 16. Rh1 {[%clk 0:02:27]}  Nc7 {[%clk 0:02:30]} 17. Re1 {[%clk 0:02:15]}  a6 {[%clk 0:02:30]} 18. f4 {[%clk 0:02:06]}  Ng4 {[%clk 0:02:22]} 19. Bxg4 {[%clk 0:02:06]}  fxg4 {[%clk 0:02:23]} 20. Ne4 {[%clk 0:02:06]}  Qf5 {[%clk 0:02:21]} 21. Nf2 {[%clk 0:02:05]}  Qxh5 {[%clk 0:02:19]} 22. Qxg4 {[%clk 0:01:56]}  Qxg4 {[%clk 0:02:16]} 23. Nxg4 {[%clk 0:01:57]}  b5 {[%clk 0:02:15]} 24. b3 {[%clk 0:01:55]}  Rab8 {[%clk 0:02:12]} 25. Rab1 {[%clk 0:01:52]}  h5 {[%clk 0:02:09]} 26. Nf2 {[%clk 0:01:52]}  Bf6 {[%clk 0:02:09]} 27. Kf3 {[%clk 0:01:52]}  a5 {[%clk 0:02:01]} 28. Ne4 {[%clk 0:01:49]}  Be7 {[%clk 0:01:54]} 29. Rh1 {[%clk 0:01:29]}  bxc4 {[%clk 0:01:54]} 30. bxc4 {[%clk 0:01:27]}  g6 {[%clk 0:01:49]} 31. Rbg1 {[%clk 0:01:23]}  Rb4 {[%clk 0:01:45]} 32. Nd2 {[%clk 0:01:10]}  Bf6 {[%clk 0:01:35]} 33. g4 {[%clk 0:00:56]}  Rxe3+ {[%clk 0:01:33]} 34. Kxe3 {[%clk 0:00:56]}  Bd4+ {[%clk 0:01:34]} 35. Kd3 {[%clk 0:00:51]}  Bxg1 {[%clk 0:01:35]} 36. Rxg1 {[%clk 0:00:51]}  hxg4 {[%clk 0:01:31]} 37. Rxg4 {[%clk 0:00:51]}  Kf7 {[%clk 0:01:32]} 38. Ne4 {[%clk 0:00:44]}  Ne8 {[%clk 0:01:31]} 39. Rh4 {[%clk 0:00:44]}  Kg7 {[%clk 0:01:24]} 40. Ng5 {[%clk 0:00:44]}  Nf6 {[%clk 0:01:20]} 41. Ne6+ {[%clk 0:00:43]}  Kf7 {[%clk 0:01:18]} 42. Rh8 {[%clk 0:00:43]}  Ra4 {[%clk 0:01:11]} 43. Ng5+ {[%clk 0:00:14]}  Ke7 {[%clk 0:01:02]} 44. Rh6 {[%clk 0:00:14]}  Ra3+ {[%clk 0:01:01]} 45. Kc2 {[%clk 0:00:13]}  Rxa2+ {[%clk 0:01:01]} 46. Kb3 {[%clk 0:00:09]}  Rf2 {[%clk 0:01:02]} 47. Rxg6 {[%clk 0:00:06]}  Rxf4 {[%clk 0:01:02]} 48. Rg7+ {[%clk 0:00:04]}  Ke8 {[%clk 0:00:59]} 49. Ne6 {[%clk 0:00:05]}  a4+ {[%clk 0:00:53]} 50. Kxa4 {[%clk 0:00:05]}  Rxc4+ {[%clk 0:00:52]} 51. Kb5 {[%clk 0:00:06]}  Rg4 {[%clk 0:00:44]} 52. Nc7+ {[%clk 0:00:05]}  Kf8 {[%clk 0:00:40]} 53. Ne6+ {[%clk 0:00:03]}  Ke8 {[%clk 0:00:40]} 54. Ra7 {[%clk 0:00:02]}  Nxd5 {[%clk 0:00:37]} 55. Kc6 {[%clk 0:00:03]}  Ne7+ {[%clk 0:00:32]} 56. Kxd6 {[%clk 0:00:03]}  Nc8+ {[%clk 0:00:32]} 57. Kxc5 {[%clk 0:00:02]}  Nxa7 {[%clk 0:00:31]} 58. Kd6 {[%clk 0:00:03]}  Nc8+ {[%clk 0:00:31]} 59. Ke5 {[%clk 0:00:03]}  Ne7 {[%clk 0:00:30]} 60. Kf6 {[%clk 0:00:03]}  Rg6+ {[%clk 0:00:28]} 61. Ke5 {[%clk 0:00:03]}  Rg1 {[%clk 0:00:29]} 62. Kf6 {[%clk 0:00:03]}  Rf1+ {[%clk 0:00:29]} 63. Ke5 {[%clk 0:00:03]}  Re1+ {[%clk 0:00:29]} 64. Kd6 {[%clk 0:00:03]}  Nf5+ {[%clk 0:00:29]} 65. Kd5 {[%clk 0:00:04]}  Ne3+ {[%clk 0:00:28]} 66. Kd6 {[%clk 0:00:04]}  Nc4+ {[%clk 0:00:28]} 67. Kd5 {[%clk 0:00:04]}  Nb6+ {[%clk 0:00:28]} 68. Kd6 {[%clk 0:00:04]}  Nc8+ {[%clk 0:00:28]} 69. Kd5 {[%clk 0:00:05]}  Ke7 {[%clk 0:00:27]} 70. Nc5 {[%clk 0:00:05]}  Nd6 {[%clk 0:00:27]} 71. Kc6 {[%clk 0:00:05]}  Rc1 {[%clk 0:00:26]} 72. Kd5 {[%clk 0:00:05]}  Nf7 {[%clk 0:00:26]} 73. Nb3 {[%clk 0:00:05]}  Rb1 {[%clk 0:00:25]} 74. Nd4 {[%clk 0:00:05]}  Ng5 {[%clk 0:00:22]} 75. Nc6+ {[%clk 0:00:05]}  Kf6 {[%clk 0:00:22]} 76. Nd4 {[%clk 0:00:06]}  Re1 {[%clk 0:00:20]} 77. Nc2 {[%clk 0:00:05]}  Re2 {[%clk 0:00:18]} 78. Nd4 {[%clk 0:00:05]}  Re5+ {[%clk 0:00:19]} 79. Kc4 {[%clk 0:00:05]}  Ne6 {[%clk 0:00:19]} 80. Nb5 {[%clk 0:00:04]}  Rc5+ {[%clk 0:00:19]} 81. Kb4 {[%clk 0:00:04]}  Ke5 {[%clk 0:00:19]} 82. Nc3 {[%clk 0:00:05]}  Kd4 {[%clk 0:00:18]} 83. Nb5+ {[%clk 0:00:05]}  Kd3 {[%clk 0:00:18]} 84. Nd6 {[%clk 0:00:06]}  Rc4+ {[%clk 0:00:17]} 85. Nxc4 {[%clk 0:00:06]} 1/2-1/2


[Site "https://www.chess.com"]

[Event "Titled Tuesday Blitz June 6 Early 2023"]
[White "Fernandez Guillen, Ernesto J."]
[Black "Agibileg, Uurtsaikh"]
[WhiteFideId "3512428"]
[BlackFideId "4901606"]
[WhiteElo "2434"]
[BlackElo "2353"]
[Result "1-0"]
[Round "10"]
[TimeControl "180+2"]
[Date "2023.06.06"]
[WhiteClock "0:01:35"]
[BlackClock "0:00:08"]
[Board "29"]

1. e4 {[%clk 0:03:00]}  c5 {[%clk 0:02:59]} 2. Nf3 {[%clk 0:02:58]}  e6 {[%clk 0:03:00]} 3. d4 {[%clk 0:02:58]}  cxd4 {[%clk 0:03:00]} 4. Nxd4 {[%clk 0:02:59]}  Nc6 {[%clk 0:03:01]} 5. Nc3 {[%clk 0:02:59]}  Qc7 {[%clk 0:03:01]} 6. Be3 {[%clk 0:02:58]}  a6 {[%clk 0:03:00]} 7. Qd2 {[%clk 0:02:58]}  Nf6 {[%clk 0:03:00]} 8. O-O-O {[%clk 0:02:59]}  Bb4 {[%clk 0:03:00]} 9. f3 {[%clk 0:02:59]}  Ne5 {[%clk 0:02:55]} 10. Qe1 {[%clk 0:02:59]}  O-O {[%clk 0:02:49]} 11. Nb3 {[%clk 0:02:50]}  b5 {[%clk 0:02:47]} 12. Bd4 {[%clk 0:02:49]}  d6 {[%clk 0:02:41]} 13. Qg3 {[%clk 0:02:46]}  Bb7 {[%clk 0:02:31]} 14. Kb1 {[%clk 0:02:43]}  Rfc8 {[%clk 0:02:24]} 15. h4 {[%clk 0:02:42]}  a5 {[%clk 0:02:14]} 16. Bxb5 {[%clk 0:02:20]}  a4 {[%clk 0:02:14]} 17. Nxa4 {[%clk 0:02:21]}  Qxc2+ {[%clk 0:02:13]} 18. Ka1 {[%clk 0:02:21]}  Qc7 {[%clk 0:01:13]} 19. Rc1 {[%clk 0:02:04]}  Qe7 {[%clk 0:00:57]} 20. Nb6 {[%clk 0:01:55]}  Rxc1+ {[%clk 0:00:56]} 21. Rxc1 {[%clk 0:01:56]}  Rb8 {[%clk 0:00:53]} 22. a3 {[%clk 0:01:54]}  Nh5 {[%clk 0:00:47]} 23. Qg5 {[%clk 0:01:51]}  f6 {[%clk 0:00:23]} 24. Qxh5 {[%clk 0:01:50]}  Bxa3 {[%clk 0:00:24]} 25. bxa3 {[%clk 0:01:49]}  d5 {[%clk 0:00:25]} 26. Ka2 {[%clk 0:01:43]}  Nc4 {[%clk 0:00:17]} 27. Nxc4 {[%clk 0:01:40]}  dxc4 {[%clk 0:00:18]} 28. Bxc4 {[%clk 0:01:41]}  Ra8 {[%clk 0:00:18]} 29. Qc5 {[%clk 0:01:40]}  Qd7 {[%clk 0:00:17]} 30. Bb2 {[%clk 0:01:38]}  h6 {[%clk 0:00:11]} 31. Qb6 {[%clk 0:01:36]}  Bc6 {[%clk 0:00:09]} 32. Bxe6+ {[%clk 0:01:34]}  Qxe6 {[%clk 0:00:09]} 33. Qxc6 {[%clk 0:01:35]}  Qe7 {[%clk 0:00:08]} 34. Qxa8+ {[%clk 0:01:35]} 1-0


[Site "https://www.chess.com"]

[Event "Titled Tuesday Blitz June 6 Early 2023"]
[White "Gubajdullin, Alexei"]
[Black "Weetik, Vjacheslav"]
[WhiteFideId "4141202"]
[BlackFideId "4153472"]
[WhiteElo "2279"]
[BlackElo "2469"]
[Result "0-1"]
[Round "10"]
[TimeControl "180+2"]
[Date "2023.06.06"]
[WhiteClock "0:00:05"]
[BlackClock "0:00:30"]
[Board "30"]

1. d4 {[%clk 0:02:59]}  Nf6 {[%clk 0:03:00]} 2. Nf3 {[%clk 0:02:59]}  e6 {[%clk 0:03:00]} 3. Bf4 {[%clk 0:02:59]}  d5 {[%clk 0:02:56]} 4. e3 {[%clk 0:02:59]}  Bd6 {[%clk 0:02:56]} 5. Bg3 {[%clk 0:02:58]}  O-O {[%clk 0:02:54]} 6. Nbd2 {[%clk 0:02:58]}  c5 {[%clk 0:02:54]} 7. c3 {[%clk 0:02:57]}  Qc7 {[%clk 0:02:54]} 8. Ne5 {[%clk 0:02:56]}  Nfd7 {[%clk 0:02:48]} 9. f4 {[%clk 0:02:56]}  f6 {[%clk 0:02:44]} 10. Nxd7 {[%clk 0:02:56]}  Nxd7 {[%clk 0:02:33]} 11. Bd3 {[%clk 0:02:55]}  e5 {[%clk 0:02:11]} 12. fxe5 {[%clk 0:02:55]}  fxe5 {[%clk 0:02:11]} 13. dxc5 {[%clk 0:01:59]}  Nxc5 {[%clk 0:02:07]} 14. Bc2 {[%clk 0:01:59]}  Bf5 {[%clk 0:01:29]} 15. Bxf5 {[%clk 0:01:40]}  Rxf5 {[%clk 0:01:29]} 16. Nb3 {[%clk 0:01:39]}  Qf7 {[%clk 0:01:15]} 17. Nxc5 {[%clk 0:01:31]}  Bxc5 {[%clk 0:01:15]} 18. Qe2 {[%clk 0:01:31]}  Rc8 {[%clk 0:00:48]} 19. O-O-O {[%clk 0:01:11]}  d4 {[%clk 0:00:48]} 20. e4 {[%clk 0:01:08]}  Qxa2 {[%clk 0:00:34]} 21. exf5 {[%clk 0:00:17]}  dxc3 {[%clk 0:00:34]} 22. Kc2 {[%clk 0:00:05]}  Qxb2+ {[%clk 0:00:30]} 23. Kd3 {[%clk 0:00:05]}  Rd8+ {[%clk 0:00:30]} 0-1


[Site "https://www.chess.com"]

[Event "Titled Tuesday Blitz June 6 Early 2023"]
[White "Kushko, Dmitriy"]
[Black "Bilan, Danila"]
[WhiteFideId "14162261"]
[BlackFideId "24161918"]
[WhiteElo "2230"]
[BlackElo "2146"]
[Result "1-0"]
[Round "10"]
[TimeControl "180+2"]
[Date "2023.06.06"]
[WhiteClock "0:00:21"]
[BlackClock "0:00:02"]
[Board "32"]

1. Nf3 {[%clk 0:03:00]}  d5 {[%clk 0:03:00]} 2. g3 {[%clk 0:03:01]}  Nf6 {[%clk 0:02:59]} 3. Bg2 {[%clk 0:03:01]}  c5 {[%clk 0:03:00]} 4. O-O {[%clk 0:03:01]}  Nc6 {[%clk 0:03:00]} 5. d4 {[%clk 0:03:02]}  Bg4 {[%clk 0:03:00]} 6. dxc5 {[%clk 0:03:01]}  e6 {[%clk 0:02:57]} 7. c4 {[%clk 0:02:59]}  Bxc5 {[%clk 0:02:55]} 8. Nc3 {[%clk 0:02:53]}  O-O {[%clk 0:02:24]} 9. cxd5 {[%clk 0:02:46]}  Nxd5 {[%clk 0:02:23]} 10. Nxd5 {[%clk 0:02:46]}  Qxd5 {[%clk 0:02:17]} 11. Qxd5 {[%clk 0:02:41]}  exd5 {[%clk 0:02:18]} 12. h3 {[%clk 0:02:31]}  Bh5 {[%clk 0:02:15]} 13. Rd1 {[%clk 0:02:26]}  Rad8 {[%clk 0:01:45]} 14. Bf4 {[%clk 0:02:26]}  Rfe8 {[%clk 0:01:43]} 15. Kf1 {[%clk 0:02:15]}  f6 {[%clk 0:01:34]} 16. g4 {[%clk 0:01:56]}  Bg6 {[%clk 0:01:24]} 17. Rac1 {[%clk 0:01:53]}  Bb6 {[%clk 0:01:24]} 18. Nd2 {[%clk 0:01:06]}  Nd4 {[%clk 0:01:04]} 19. Be3 {[%clk 0:01:06]}  Nxe2 {[%clk 0:00:55]} 20. Bxb6 {[%clk 0:00:38]}  axb6 {[%clk 0:00:46]} 21. Rc7 {[%clk 0:00:38]}  Bd3 {[%clk 0:00:36]} 22. Nb3 {[%clk 0:00:38]}  Bc4 {[%clk 0:00:21]} 23. Rd2 {[%clk 0:00:26]}  Nf4+ {[%clk 0:00:05]} 24. Kg1 {[%clk 0:00:26]}  Re1+ {[%clk 0:00:04]} 25. Kh2 {[%clk 0:00:26]}  Nxg2 {[%clk 0:00:04]} 26. Kxg2 {[%clk 0:00:27]}  h5 {[%clk 0:00:04]} 27. gxh5 {[%clk 0:00:24]}  Rde8 {[%clk 0:00:03]} 28. Rxb7 {[%clk 0:00:23]}  b5 {[%clk 0:00:03]} 29. Nd4 {[%clk 0:00:23]}  R8e5 {[%clk 0:00:03]} 30. Nf3 {[%clk 0:00:22]}  Bf1+ {[%clk 0:00:02]} 31. Kg3 {[%clk 0:00:20]}  Bc4 {[%clk 0:00:02]} 32. Nxe1 {[%clk 0:00:20]}  Rxe1 {[%clk 0:00:02]} 33. b3 {[%clk 0:00:21]} 1-0


[Site "https://www.chess.com"]